bitfinex-derivatives/quotes_BTCF0:USTF0_20250416
["timestamp","ask_amount","ask_price","bid_price","bid_amount"]
[1744818460790,0.00010801,85025.0,85024.0,0.1176232]
[1744818460988,0.0587988,85043.0,85024.0,0.1176232]
[1744818460989,0.1176117,85033.0,85028.0,0.1176177]
[1744818461183,0.00010801,85035.0,85028.0,0.1176177]
[1744818461390,0.11779273,85029.0,85028.0,0.3569177]
[1744818462195,0.11787273,85029.0,85028.0,0.3589177]
[1744818462782,0.00025643,85029.0,85028.0,0.3589177]
[1744818463091,0.36106573,85048.0,85028.0,0.3589177]
[1744818463092,0.00010801,85040.0,85028.0,0.5013]
[1744818463295,0.00010801,85040.0,85039.0,0.4784025]
[1744818463488,0.1175928,85046.0,85045.0,0.1175942]
[1744818463793,0.1176728,85046.0,85045.0,0.2192342]
[1744818464092,0.4784728,85046.0,85045.0,0.2192342]
[1744818464295,0.4784728,85046.0,85045.0,0.3344342]
[1744818464794,0.5995728,85046.0,85045.0,0.3344342]
[1744818464995,0.6045728,85046.0,85045.0,0.3344342]
[1744818465190,0.1226728,85046.0,85045.0,0.3344342]
[1744818465389,0.005,85046.0,85045.0,0.3344342]
[1744818465697,0.1226728,85046.0,85045.0,0.3344342]
[1744818466993,0.3701728,85046.0,85045.0,0.3344342]
[1744818467584,0.3701728,85046.0,85045.0,0.10164]
[1744818467982,0.4932728,85046.0,85045.0,0.10164]
[1744818468585,0.1176038,85038.0,85037.0,0.00017643]
[1744818468995,0.3635038,85038.0,85037.0,0.00017643]
[1744818469793,0.7243038,85038.0,85037.0,0.00017643]
[1744818469998,0.6067,85038.0,85033.0,0.10164]
[1744818470190,0.1176218,85025.0,85024.0,0.1176231]
[1744818470496,0.1176274,85021.0,85020.0,0.10164]
[1744818470798,0.1176274,85021.0,85014.0,0.10164]
[1744818470799,0.1176357,85015.0,85014.0,0.10164]
[1744818471491,0.3627357,85015.0,85014.0,0.10164]
[1744818471694,0.1176467,85007.0,85006.0,0.1780858]
[1744818471892,0.4784467,85007.0,85006.0,0.1964558]
[1744818472393,0.4784467,85007.0,85006.0,0.3141039]
[1744818472592,0.72666821,85007.0,85006.0,0.13619453]
[1744818473491,0.72666821,85007.0,85006.0,0.25839453]
[1744818473696,0.72666821,85007.0,85006.0,0.26039453]
[1744818474588,0.72666821,85007.0,85006.0,0.26239453]
[1744818474985,0.72666821,85007.0,85006.0,0.24402453]
[1744818475389,0.7153467,85007.0,85006.0,0.24402453]
[1744818479399,0.3545467,85007.0,85006.0,0.24402453]
[1744818479596,0.2369,85007.0,85006.0,0.24402453]
[1744818479801,0.00017643,85023.0,85022.0,0.117626]
[1744818480099,0.23670103,85023.0,85022.0,0.478426]
[1744818480403,0.11780103,85023.0,85022.0,0.478426]
[1744818480798,0.11780103,85023.0,85022.0,0.595726]
[1744818481101,0.11780103,85023.0,85022.0,0.697406]
[1744818481102,0.00317643,85023.0,85022.0,0.697406]
[1744818481303,0.00325643,85023.0,85022.0,0.697406]
[1744818481601,0.1176121,85032.0,85031.0,0.1764187]
[1744818481991,0.1176121,85032.0,85031.0,0.5372187]
[1744818482204,0.1176921,85032.0,85031.0,0.5372187]
[1744818482903,0.1206921,85032.0,85031.0,0.5372187]
[1744818483404,0.00308,85032.0,85031.0,0.5372187]
[1744818483806,0.17855152,85037.0,85036.0,0.1176066]
[1744818484106,0.17863152,85037.0,85036.0,0.1176066]
[1744818484497,8e-05,85037.0,85036.0,0.1176066]
[1744818484697,8e-05,85037.0,85036.0,0.3547066]
[1744818485506,0.1176029,85039.0,85038.0,0.1176038]
[1744818485704,0.1176029,85039.0,85038.0,0.5800438]
[1744818486109,0.1176029,85039.0,85038.0,0.8128438]
[1744818487297,0.1186029,85039.0,85038.0,0.8128438]
[1744818487495,0.058793,85051.0,85048.0,0.11759]
[1744818487695,0.11769661,85049.0,85048.0,0.11759]
[1744818487901,0.1175886,85054.0,85053.0,0.2351535]
[1744818488713,0.1176686,85054.0,85053.0,0.2351535]
[1744818489193,8e-05,85054.0,85053.0,0.2351535]
[1744818489398,0.1175815,85055.0,85054.0,0.1175817]
[1744818489809,0.1175815,85055.0,85054.0,0.3644817]
[1744818490202,0.1175815,85055.0,85054.0,0.4661217]
[1744818490899,0.1205815,85055.0,85054.0,0.4661217]
[1744818491095,0.2357815,85055.0,85054.0,0.3403217]
[1744818491296,0.3559815,85055.0,85054.0,0.3403217]
[1744818493609,0.3559815,85055.0,85054.0,0.10164]
[1744818495108,0.3559815,85055.0,85054.0,0.2192217]
[1744818495410,0.3559815,85055.0,85054.0,0.10164]
[1744818495613,0.0587936,85050.0,85042.0,0.10128]
[1744818495819,0.1176094,85035.0,85034.0,0.2188867]
[1744818496111,0.1176094,85035.0,85034.0,0.3330867]
[1744818496318,0.3594094,85035.0,85034.0,0.3330867]
[1744818496616,0.3594094,85035.0,85034.0,0.2318067]
[1744818496914,0.3594094,85035.0,85034.0,0.1142]
[1744818497217,0.1176121,85032.0,85031.0,0.10128]
[1744818497417,0.1176121,85032.0,85031.0,0.2188935]
[1744818497714,0.1176121,85032.0,85031.0,0.10128]
[1744818498015,0.3586121,85032.0,85031.0,0.10128]
[1744818498819,0.3586121,85032.0,85031.0,0.10228]
[1744818499113,0.2428121,85032.0,85031.0,0.2198935]
[1744818499514,0.2428121,85032.0,85031.0,0.4599935]
[1744818500315,0.2428121,85032.0,85031.0,0.3423935]
[1744818500616,0.3645121,85032.0,85031.0,0.22478]
[1744818500818,0.3645121,85032.0,85031.0,0.10328]
[1744818501009,0.3645121,85032.0,85031.0,0.002]
[1744818501212,0.1176191,85027.0,85026.0,0.00017643]
[1744818501608,0.3552191,85027.0,85026.0,0.00017643]
[1744818503108,0.3562191,85027.0,85026.0,0.00017643]
[1744818504022,0.117626,85022.0,85021.0,0.01846]
[1744818505214,0.119626,85022.0,85021.0,0.01846]
[1744818505612,0.120626,85022.0,85021.0,0.01846]
[1744818506519,0.117637,85014.0,85013.0,0.00017643]
[1744818506913,0.117637,85014.0,85013.0,0.11781483]
[1744818507315,0.361437,85014.0,85013.0,0.11781483]
[1744818507711,0.237637,85014.0,85013.0,0.11781483]
[1744818507917,0.237637,85014.0,85013.0,0.11881483]
[1744818507918,0.237717,85014.0,85013.0,0.11881483]
[1744818508421,0.237717,85014.0,85013.0,0.24211483]
[1744818509316,0.117717,85014.0,85013.0,0.24211483]
[1744818509516,0.117637,85014.0,85013.0,0.24211483]
[1744818509718,0.117717,85014.0,85013.0,0.36431483]
[1744818510523,0.117717,85014.0,85013.0,0.24667643]
[1744818510725,0.354417,85014.0,85013.0,0.36431483]
[1744818511717,0.232417,85014.0,85013.0,0.36431483]
[1744818511916,8e-05,85014.0,85013.0,0.36431483]
[1744818512222,0.00028444,85022.0,85021.0,0.1176274]
[1744818512531,0.3608,85054.0,85037.0,0.1764001]
[1744818512532,0.1176108,85038.0,85037.0,0.1764001]
[1744818512911,0.1176108,85038.0,85037.0,0.0588009]
[1744818513118,0.1176108,85038.0,85035.0,0.0588039]
[1744818513119,0.1176121,85032.0,85031.0,0.4152063]
[1744818513518,0.1176121,85032.0,85031.0,0.3564]
[1744818513718,0.1176121,85032.0,85031.0,0.2382]
[1744818513931,0.3520121,85032.0,85031.0,0.1182]
[1744818514827,0.3520121,85032.0,85031.0,0.2358135]
[1744818515127,0.1196121,85032.0,85031.0,0.2358135]
[1744818515333,0.1196121,85032.0,85031.0,0.3555135]
[1744818516326,0.1176121,85032.0,85031.0,0.3555135]
[1744818517730,0.1186121,85032.0,85031.0,0.3555135]
[1744818518125,0.1176121,85032.0,85031.0,0.3565135]
[1744818519329,0.0588054,85033.0,85031.0,0.3565135]
[1744818519526,0.00017643,85040.0,85036.0,0.0588028]
[1744818519527,0.1176035,85039.0,85036.0,0.0588028]
[1744818519832,0.1176035,85039.0,85038.0,0.1176025]
[1744818520030,0.1764054,85039.0,85038.0,0.1176025]
[1744818520232,0.1764854,85039.0,85038.0,0.3599025]
[1744818521027,0.1774854,85039.0,85038.0,0.3599025]
[1744818521231,0.0598819,85039.0,85038.0,0.7207025]
[1744818522425,0.0598019,85039.0,85038.0,0.7207025]
[1744818522624,0.0598819,85039.0,85038.0,0.7207025]
[1744818522931,0.0598819,85039.0,85038.0,0.5959025]
[1744818523232,0.1752819,85039.0,85038.0,0.5959025]
[1744818523431,0.2959819,85039.0,85038.0,0.5959025]
[1744818525137,0.0598819,85039.0,85038.0,0.7144025]
[1744818526037,0.1805819,85039.0,85038.0,0.7144025]
[1744818527645,0.0598819,85039.0,85038.0,0.7144025]
[1744818529640,0.00108,85039.0,85038.0,0.7144025]
[1744818529940,0.1186025,85039.0,85038.0,0.7144025]
[1744818530140,0.1186825,85039.0,85038.0,0.7144025]
[1744818530838,0.2434825,85039.0,85038.0,0.3536025]
[1744818532634,0.3664825,85039.0,85038.0,0.3536025]
[1744818533332,0.1176052,85037.0,85036.0,0.01855]
[1744818533636,0.1176246,85023.0,85022.0,0.10096]
[1744818533836,0.4784246,85023.0,85022.0,0.10096]
[1744818534044,0.117637,85014.0,85013.0,0.00017643]
[1744818534534,0.364137,85014.0,85013.0,0.00017643]
[1744818535238,0.364137,85014.0,85013.0,0.00217643]
[1744818536429,0.724937,85014.0,85013.0,0.00417643]
[1744818539741,0.725937,85014.0,85013.0,0.00217643]
[1744818540942,0.727937,85014.0,85013.0,0.00017643]
[1744818541337,0.7368047,85014.0,85013.0,0.00017643]
[1744818541839,0.1176481,85006.0,84999.0,0.10096]
[1744818542045,0.1176564,85000.0,84999.0,0.10096]
[1744818542834,0.2353564,85000.0,84999.0,0.10096]
[1744818544140,0.2353564,85000.0,84999.0,0.10296]
[1744818544332,0.2353564,85000.0,84999.0,0.10396]
[1744818545133,0.2353564,85000.0,84999.0,0.21876]
[1744818545941,0.3491564,85000.0,84999.0,0.21876]
[1744818546547,0.0588275,85002.0,85001.0,0.117655]
[1744818546749,0.36090801,85006.0,85003.0,0.0588261]
[1744818546940,0.4784495,85006.0,85005.0,0.1176495]
[1744818547137,0.4785295,85006.0,85005.0,0.1176495]
[1744818547339,0.4785295,85006.0,85005.0,0.3611495]
[1744818547538,0.5923295,85006.0,85005.0,0.3611495]
[1744818547841,0.5923295,85006.0,85005.0,0.1214]
[1744818548046,0.8357295,85006.0,85005.0,0.1214]
[1744818548639,0.1176537,85002.0,85001.0,0.001]
[1744818549146,0.3597537,85002.0,85001.0,0.001]
[1744818550034,0.3597537,85002.0,85001.0,0.002]
[1744818550443,0.3597537,85002.0,85001.0,0.001]
[1744818551234,0.3597537,85002.0,85001.0,0.002]
[1744818560642,0.7205537,85002.0,85001.0,0.002]
[1744818563140,0.7205537,85002.0,85001.0,0.00011053]
[1744818563850,0.4784537,85002.0,85001.0,0.00011053]
[1744818564853,0.5914537,85002.0,85001.0,0.00011053]
[1744818566345,0.1176537,85002.0,85001.0,0.00011053]
[1744818566743,0.1177337,85002.0,85001.0,0.00011053]
[1744818567054,0.1176537,85002.0,85001.0,0.00011053]
[1744818567242,0.1177337,85002.0,85001.0,0.00011053]
[1744818569847,0.1176592,84998.0,84997.0,0.1218]
[1744818570047,0.1176675,84992.0,84991.0,0.00017643]
[1744818570450,0.3559675,84992.0,84991.0,0.00017643]
[1744818572645,0.3559675,84992.0,84991.0,0.00417643]
[1744818573354,0.3559675,84992.0,84991.0,0.00717643]
[1744818576055,0.1176689,84991.0,84990.0,0.11463943]
[1744818576254,0.1176841,84980.0,84979.0,0.00506004]
[1744818576454,0.4784841,84980.0,84979.0,0.00506004]
[1744818576855,0.7153841,84980.0,84979.0,0.00506004]
[1744818577356,0.72694389,84980.0,84979.0,0.00506004]
[1744818578058,0.1177007,84968.0,84967.0,0.00176538]
[1744818578358,0.117709,84962.0,84961.0,0.1108]
[1744818579356,0.1177104,84961.0,84960.0,0.17790937]
[1744818579855,0.3497104,84961.0,84960.0,0.17790937]
[1744818580257,0.1177174,84956.0,84953.0,0.00506159]
[1744818580455,0.4785174,84956.0,84953.0,0.00506159]
[1744818581157,0.71946253,84956.0,84953.0,0.00506159]
[1744818581561,0.71946253,84956.0,84955.0,0.2392125]
[1744818582261,0.71946253,84956.0,84955.0,0.2412125]
[1744818582460,0.71946253,84956.0,84955.0,0.004]
[1744818583255,0.48746253,84956.0,84955.0,0.2305]
[1744818583658,0.0588631,84950.0,84946.0,0.1155]
[1744818583856,0.0588631,84950.0,84947.0,0.2265]
[1744818583857,0.1177284,84948.0,84947.0,0.2265]
[1744818584061,0.4785284,84948.0,84947.0,0.2265]
[1744818585066,0.5957284,84948.0,84947.0,0.2265]
[1744818585360,0.72783298,84948.0,84947.0,0.2315]
[1744818585759,0.72783298,84948.0,84947.0,0.2355]
[1744818587866,0.72783298,84948.0,84947.0,0.2315]
[1744818588070,0.72783298,84948.0,84947.0,0.117]
[1744818588267,0.1177423,84938.0,84937.0,0.1219]
[1744818588565,0.4785423,84938.0,84937.0,0.1219]
[1744818588969,0.5922423,84938.0,84937.0,0.1219]
[1744818589461,0.5922423,84938.0,84937.0,0.1259]
[1744818589661,0.7144423,84938.0,84937.0,0.2403]
[1744818590762,0.7144423,84938.0,84937.0,0.2433]
[1744818591767,0.6007423,84938.0,84937.0,0.2433]
[1744818592071,0.4785423,84938.0,84937.0,0.2433]
[1744818594270,0.5889423,84938.0,84937.0,0.2433]
[1744818595459,0.5889423,84938.0,84937.0,0.1214]
[1744818595664,0.1177534,84930.0,84929.0,0.10032]
[1744818596071,0.3514534,84930.0,84929.0,0.10032]
[1744818596271,0.0588801,84925.0,84923.0,0.10032]
[1744818596468,0.3514617,84924.0,84923.0,0.10032]
[1744818597063,0.1177617,84924.0,84923.0,0.10032]
[1744818597262,0.1177617,84924.0,84923.0,0.2180831]
[1744818597865,0.1177617,84924.0,84923.0,0.10032]
[1744818598268,0.1177617,84924.0,84923.0,0.2180831]
[1744818598464,0.1177617,84924.0,84923.0,0.10532]
[1744818598865,0.1177617,84924.0,84923.0,0.32732]
[1744818599072,0.2380617,84924.0,84923.0,0.32732]
[1744818600266,0.1177617,84924.0,84923.0,0.4450831]
[1744818600476,0.1178417,84924.0,84923.0,0.4450831]
[1744818600977,0.1177617,84924.0,84923.0,0.4450831]
[1744818601178,0.1178417,84924.0,84923.0,0.4450831]
[1744818601366,0.1177617,84924.0,84923.0,0.32732]
[1744818601570,0.1178417,84924.0,84923.0,0.32732]
[1744818601769,0.1178417,84924.0,84923.0,0.4450831]
[1744818601972,0.2343417,84924.0,84923.0,0.4450831]
[1744818602365,0.2343417,84924.0,84923.0,0.32732]
[1744818602876,0.2343417,84924.0,84923.0,0.4450831]
[1744818603072,0.2343417,84924.0,84923.0,0.32732]
[1744818603275,8e-05,84924.0,84923.0,0.4450831]
[1744818603478,0.3608,84943.0,84923.0,0.4450831]
[1744818603479,0.176627,84932.0,84931.0,0.117752]
[1744818603673,0.176627,84932.0,84931.0,0.356052]
[1744818604179,0.17673501,84932.0,84931.0,0.356052]
[1744818604374,0.176627,84932.0,84931.0,0.356052]
[1744818604578,0.176707,84932.0,84931.0,0.358052]
[1744818604779,8e-05,84932.0,84931.0,0.360052]
[1744818605079,0.1177402,84940.0,84939.0,0.1177409]
[1744818605270,0.1177402,84940.0,84939.0,0.5994409]
[1744818605569,0.11784571,84942.0,84941.0,0.1177381]
[1744818605966,0.1766006,84945.0,84944.0,0.117734]
[1744818606182,0.1766045,84943.0,84942.0,0.1177355]
[1744818606379,0.1766065,84942.0,84941.0,0.1177378]
[1744818606581,0.1766252,84933.0,84932.0,0.1177503]
[1744818606781,0.1177506,84932.0,84931.0,0.002]
[1744818606981,0.3430506,84932.0,84931.0,0.119752]
[1744818607182,0.2318506,84932.0,84931.0,0.117752]
[1744818607584,0.1177506,84932.0,84931.0,0.117752]
[1744818607787,0.1178306,84932.0,84931.0,0.117752]
[1744818607975,0.2319306,84932.0,84931.0,0.117752]
[1744818608373,0.2319306,84932.0,84931.0,0.119752]
[1744818608576,0.2319306,84932.0,84931.0,0.121752]
[1744818608797,0.1178306,84932.0,84931.0,0.222072]
[1744818609276,0.2319306,84932.0,84931.0,0.222072]
[1744818610980,8e-05,84932.0,84931.0,0.222072]
[1744818611785,0.1178306,84932.0,84931.0,0.222072]
[1744818611977,0.1177506,84932.0,84931.0,0.222072]
[1744818612177,0.2354306,84932.0,84931.0,0.222072]
[1744818612383,0.3537306,84932.0,84931.0,0.222072]
[1744818614777,8e-05,84932.0,84931.0,0.222072]
[1744818614983,0.0588713,84938.0,84937.0,0.1766141]
[1744818615580,0.1696513,84938.0,84937.0,0.1766141]
[1744818615881,0.2879513,84938.0,84937.0,0.1766141]
[1744818616480,0.2879513,84938.0,84937.0,0.1776141]
[1744818617288,0.11078,84938.0,84937.0,0.1776141]
[1744818617590,0.2285223,84938.0,84937.0,0.1776141]
[1744818618087,0.11078,84938.0,84937.0,0.1776141]
[1744818618496,0.1107,84938.0,84937.0,0.5384141]
[1744818618687,0.11078,84938.0,84937.0,0.5384141]
[1744818618887,0.00017654,84946.0,84942.0,0.0588683]
[1744818619094,0.00017654,84946.0,84945.0,0.4785326]
[1744818619289,0.00017654,84946.0,84945.0,0.4885326]
[1744818619593,0.00510801,84956.0,84952.0,0.1177229]
[1744818619798,0.1177207,84954.0,84952.0,0.5884829]
[1744818619983,0.1177207,84954.0,84952.0,0.7068829]
[1744818620186,0.14928666,84953.0,84952.0,0.7068829]
[1744818620385,0.14920666,84953.0,84952.0,0.8231829]
[1744818620585,0.14928666,84953.0,84952.0,0.8231829]
[1744818621093,0.15628666,84953.0,84952.0,0.8231829]
[1744818621302,0.005,84956.0,84955.0,0.1177187]
[1744818621798,0.005,84956.0,84955.0,0.3571187]
[1744818622893,0.00017654,84961.0,84958.0,0.0588573]
[1744818623098,0.00019684,84975.0,84968.0,0.1177007]
[1744818623396,0.1135,84972.0,84971.0,0.1176966]
[1744818623784,0.1135,84972.0,84971.0,0.2371966]
[1744818623988,0.35288986,84981.0,84980.0,0.1176841]
[1744818623989,0.17855152,84981.0,84980.0,0.1176841]
[1744818624188,0.17855152,84981.0,84980.0,0.4784841]
[1744818624389,0.41895953,84981.0,84980.0,0.4784841]
[1744818624792,0.41895953,84981.0,84980.0,0.7075841]
[1744818625198,0.41885152,84981.0,84980.0,0.7075841]
[1744818625502,0.11784864,84989.0,84988.0,0.117673]
[1744818625802,0.11795665,84989.0,84988.0,0.117673]
[1744818625998,0.00017654,84989.0,84988.0,0.117673]
[1744818626200,0.00025654,84989.0,84988.0,0.117673]
[1744818626393,0.00025654,84989.0,84988.0,0.229873]
[1744818626588,0.00017654,84989.0,84988.0,0.229873]
[1744818626801,0.00025654,84989.0,84988.0,0.229873]
[1744818627003,0.11815654,84989.0,84988.0,0.229873]
[1744818627288,0.11815654,84989.0,84988.0,0.590673]
[1744818627694,0.12015654,84989.0,84988.0,0.590673]
[1744818627995,0.00525654,84989.0,84988.0,0.590673]
[1744818628497,0.12292814,84989.0,84988.0,0.117673]
[1744818628702,0.1176744,84987.0,84986.0,0.1765126]
[1744818629404,0.3550744,84987.0,84986.0,0.1765126]
[1744818630104,0.3550744,84987.0,84986.0,0.0588379]
[1744818630298,0.3580744,84987.0,84986.0,0.0588379]
[1744818631501,0.1177201,84954.0,84952.0,0.3608]
[1744818631695,0.1177201,84954.0,84953.0,0.12278309]
[1744818632001,0.0588505,84968.0,84967.0,0.1177021]
[1744818632499,0.0588531,84965.0,84962.0,0.1709541]
[1744818632689,0.4785077,84963.0,84962.0,0.1709541]
[1744818632891,0.1177118,84960.0,84959.0,0.00017654]
[1744818634192,0.1187118,84960.0,84959.0,0.00017654]
[1744818634604,0.1177174,84956.0,84955.0,0.09992]
[1744818634904,0.1177201,84954.0,84953.0,0.12278309]
[1744818635205,0.058858,84957.0,84953.0,0.12278309]
[1744818635206,0.058858,84957.0,84956.0,0.1177174]
[1744818636706,0.058938,84957.0,84956.0,0.1177174]
[1744818637001,0.058858,84957.0,84956.0,0.1177174]
[1744818637209,0.058938,84957.0,84956.0,0.1177174]
[1744818637707,0.002,84960.0,84959.0,0.1177132]
[1744818638094,0.2264993,84969.0,84968.0,0.1177007]
[1744818638293,0.1088,84969.0,84968.0,0.4785007]
[1744818638826,0.10888,84969.0,84968.0,0.4785007]
[1744818639199,8e-05,84969.0,84968.0,0.7075007]
[1744818639409,0.1088,84975.0,84974.0,0.1176924]
[1744818639608,0.226491,84975.0,84974.0,0.2176124]
[1744818639911,0.1088,84975.0,84974.0,0.2176124]
[1744818640208,0.11782481,84985.0,84984.0,0.1176786]
[1744818640399,0.117679,84985.0,84984.0,0.1176786]
[1744818640707,0.117759,84985.0,84984.0,0.1176786]
[1744818641110,0.1176827,84982.0,84981.0,0.1176825]
[1744818642904,0.001,84985.0,84984.0,0.1176786]
[1744818643104,0.1186772,84985.0,84984.0,0.1176786]
[1744818643503,0.1176772,84985.0,84984.0,0.1176786]
[1744818644209,0.1141,84986.0,84985.0,0.1176772]
[1744818644410,0.1141,84986.0,84985.0,0.2355772]
[1744818644611,0.2317758,84986.0,84985.0,0.2355772]
[1744818645914,0.2317758,84986.0,84985.0,0.5963772]
[1744818646114,0.2317758,84986.0,84985.0,0.4784772]
[1744818646506,0.2327758,84986.0,84985.0,0.4784772]
[1744818646814,0.2337758,84986.0,84985.0,0.4784772]
[1744818647411,0.1176772,84985.0,84984.0,0.1176782]
[1744818647917,0.1176772,84985.0,84984.0,0.3393782]
[1744818648110,0.1196768,84986.0,84985.0,0.1176772]
[1744818648510,0.1196768,84986.0,84985.0,0.3419772]
[1744818649712,0.1186768,84986.0,84985.0,0.3419772]
[1744818650014,0.1176768,84986.0,84985.0,0.3419772]
[1744818650402,0.1186768,84986.0,84985.0,0.3419772]
[1744818650809,0.1196768,84986.0,84985.0,0.2283772]
[1744818651008,0.3407768,84986.0,84985.0,0.1176772]
[1744818652909,0.3407768,84986.0,84978.0,0.1765221]
[1744818652910,0.1765317,84979.0,84978.0,0.1765221]
[1744818653709,0.1765317,84979.0,84978.0,0.2353639]
[1744818654018,0.1765124,84989.0,84988.0,0.1176703]
[1744818654619,0.5373124,84989.0,84988.0,0.1176703]
[1744818655212,0.1765124,84989.0,84988.0,0.1176703]
[1744818655919,0.0588359,84989.0,84988.0,0.1176703]
[1744818656115,0.0608359,84989.0,84988.0,0.2304703]
[1744818656411,0.4216359,84989.0,84988.0,0.2304703]
[1744818656613,0.0618359,84989.0,84988.0,0.2304703]
[1744818657119,0.1812359,84989.0,84988.0,0.1176703]
[1744818658816,0.003,84989.0,84988.0,0.1176703]
[1744818659015,0.00019684,84995.0,84990.0,0.0588351]
[1744818659221,0.00026573,84997.0,84996.0,0.117662]
[1744818659521,0.1194,85002.0,85001.0,0.117655]
[1744818659707,0.2370537,85002.0,85001.0,0.117655]
[1744818659911,0.2370537,85002.0,85001.0,0.228155]
[1744818660812,0.2430537,85002.0,85001.0,0.228155]
[1744818661220,0.1236537,85002.0,85001.0,0.228155]
[1744818661411,0.1236537,85002.0,85001.0,0.448455]
[1744818661610,0.1276537,85002.0,85001.0,0.448455]
[1744818662015,0.00010801,85004.0,85003.0,0.1176523]
[1744818662222,0.00010801,85004.0,85003.0,0.3378523]
[1744818662517,0.1176482,85006.0,85005.0,0.1176495]
[1744818662908,0.1176482,85006.0,85005.0,0.3378495]
[1744818663822,0.1764798,85003.0,85002.0,0.1176531]
[1744818664019,0.1176537,85002.0,85001.0,0.226955]
[1744818664223,0.2331537,85002.0,85001.0,0.226955]
[1744818664422,0.2331537,85002.0,85001.0,0.344555]
[1744818665320,0.2331537,85002.0,84995.0,0.00017654]
[1744818665321,0.117662,84996.0,84995.0,0.00017654]
[1744818665723,0.233162,84996.0,84995.0,0.00017654]
[1744818666124,0.233162,84996.0,84995.0,0.11783984]
[1744818666616,0.233162,84996.0,84995.0,0.00017654]
[1744818667323,0.235162,84996.0,84995.0,0.00017654]
[1744818667527,0.237162,84996.0,84995.0,0.00017654]
[1744818668224,0.1195,84996.0,84995.0,0.11783984]
[1744818668423,0.0588123,85024.0,84995.0,0.00017654]
[1744818668629,0.00017654,85010.0,85007.0,0.1176467]
[1744818668837,0.1226453,85008.0,85007.0,0.8317467]
[1744818669124,0.0588255,85004.0,84997.0,0.1764877]
[1744818669426,0.0588289,84999.0,84998.0,0.09952]
[1744818669816,0.2970289,84999.0,84998.0,0.1176592]
[1744818670427,0.1176592,84998.0,84997.0,0.2171806]
[1744818670822,0.3506592,84998.0,84997.0,0.2171806]
[1744818671429,0.3506592,84998.0,84997.0,0.3323806]
[1744818671626,0.3506592,84998.0,84997.0,0.3333806]
[1744818673129,0.3506592,84998.0,84997.0,0.3353806]
[1744818673431,0.3506592,84998.0,84997.0,0.2201806]
[1744818675631,0.3506592,84998.0,84997.0,0.4504806]
[1744818676532,0.3506592,84998.0,84997.0,0.3401806]
[1744818677134,0.3506592,84998.0,84997.0,0.4530806]
[1744818677326,0.3506592,84998.0,84997.0,0.3401806]
[1744818677833,0.3506592,84998.0,84997.0,0.2201806]
[1744818679130,0.3506592,84998.0,84997.0,0.10252]
[1744818679322,0.4661592,84998.0,84997.0,0.10252]
[1744818679526,0.4661592,84998.0,84997.0,0.2201806]
[1744818679836,0.3506592,84998.0,84997.0,0.2201806]
[1744818680035,0.7115392,84998.0,84997.0,0.10252]
[1744818681228,0.7115392,84998.0,84997.0,0.2201806]
[1744818681430,0.3507392,84998.0,84997.0,0.2201806]
[1744818681631,0.3507392,84998.0,84997.0,0.3316806]
[1744818682137,0.23308,84998.0,84997.0,0.4443806]
[1744818682435,0.233,84998.0,84997.0,0.4443806]
[1744818682633,0.23308,84998.0,84997.0,0.4443806]
[1744818683033,0.11428,84998.0,84997.0,0.4443806]
[1744818683430,0.2319392,84998.0,84997.0,0.4443806]
[1744818683840,0.7040392,84998.0,84997.0,0.2201806]
[1744818684028,0.3432392,84998.0,84997.0,0.1206606]
[1744818684229,0.3432392,84998.0,84997.0,0.2198206]
[1744818684633,0.3432392,84998.0,84997.0,0.3365206]
[1744818684834,0.3432392,84998.0,84997.0,0.2198206]
[1744818686842,0.3432392,84998.0,84997.0,0.3359206]
[1744818687141,8e-05,84998.0,84997.0,0.3359206]
[1744818687343,8e-05,84998.0,84997.0,0.4447206]
[1744818687535,0.005,85008.0,85007.0,0.1176467]
[1744818687738,0.00017654,85010.0,85009.0,0.117644]
[1744818687937,0.11781914,85010.0,85009.0,0.457844]
[1744818688239,0.11781914,85010.0,85009.0,0.349044]
[1744818688240,0.00025654,85010.0,85009.0,0.349044]
[1744818688434,0.22075654,85010.0,85009.0,0.349044]
[1744818689744,0.33839914,85010.0,85009.0,0.349044]
[1744818690352,0.33939914,85010.0,85009.0,0.349044]
[1744818690949,0.33939914,85010.0,84992.0,0.0588336]
[1744818690950,0.1176578,84999.0,84998.0,0.5961127]
[1744818691146,0.1176578,84999.0,84998.0,0.7060127]
[1744818691347,0.3512578,84999.0,84998.0,0.7060127]
[1744818692148,0.3512578,84999.0,84998.0,0.7070127]
[1744818692549,0.3512578,84999.0,84998.0,0.7090127]
[1744818692856,0.7120578,84999.0,84998.0,0.003]
[1744818693252,0.3512578,84999.0,84998.0,0.003]
[1744818694549,0.3512578,84999.0,84998.0,0.2308]
[1744818694758,0.3512578,84999.0,84998.0,0.003]
[1744818695257,0.3512578,84999.0,84998.0,0.1228]
[1744818695756,0.3512578,84999.0,84998.0,0.2414592]
[1744818699060,0.2336,84999.0,84998.0,0.2414592]
[1744818699256,0.2328578,84999.0,84998.0,0.3544592]
[1744818699660,0.2329378,84999.0,84998.0,0.2414592]
[1744818699861,0.3490378,84999.0,84998.0,0.1216592]
[1744818701261,0.3490378,84999.0,84998.0,0.2416592]
[1744818702755,0.2329378,84999.0,84998.0,0.2416592]
[1744818702965,0.00026573,85011.0,85004.0,0.0588254]
[1744818703162,0.00026573,85011.0,85009.0,0.117644]
[1744818703464,0.11781914,85010.0,85009.0,0.462944]
[1744818703650,0.00017654,85010.0,85009.0,0.462944]
[1744818703850,0.00025654,85010.0,85009.0,0.462944]
[1744818704054,0.00010801,85015.0,85014.0,0.117637]
[1744818704256,0.17914422,85018.0,85017.0,0.1176329]
[1744818704457,0.17899841,85018.0,85017.0,0.1176329]
[1744818704657,0.17907841,85018.0,85017.0,0.1176329]
[1744818705265,0.00017654,85026.0,85025.0,0.1176218]
[1744818705564,0.005,85034.0,85033.0,0.1176108]
[1744818705773,0.005,85034.0,85033.0,0.2167308]
[1744818705966,0.005,85034.0,85033.0,0.5775308]
[1744818706359,0.005,85034.0,85033.0,0.8104308]
[1744818706766,0.00508,85034.0,85033.0,0.8104308]
[1744818706973,0.1226094,85034.0,85033.0,0.6952308]
[1744818707165,0.1256894,85034.0,85033.0,0.6952308]
[1744818707768,0.1256894,85034.0,85033.0,0.3344308]
[1744818707959,0.1266894,85034.0,85033.0,0.3344308]
[1744818708471,0.1266894,85034.0,85033.0,0.09912]
[1744818708665,0.1266894,85034.0,85033.0,0.2167308]
[1744818709273,0.1266894,85034.0,85033.0,0.09912]
[1744818710970,0.1266894,85034.0,85033.0,0.2167308]
[1744818711373,0.1266894,85034.0,85033.0,0.09912]
[1744818712066,0.1266894,85034.0,85033.0,0.2167308]
[1744818712678,0.1266894,85034.0,85033.0,0.09912]
[1744818714079,0.1176204,85026.0,85025.0,0.00017643]